bitfinex-derivatives/quotes_BTCF0:USTF0_20250527
["timestamp","ask_amount","ask_price","bid_price","bid_amount"]
[1748328625360,7.508e-05,109230.0,109220.0,0.98028144]
[1748328625753,0.00019508,109230.0,109220.0,0.98028144]
[1748328625962,0.00019508,109230.0,109220.0,0.98128144]
[1748328626360,0.00019508,109230.0,109220.0,0.98228144]
[1748328626857,0.00019508,109230.0,109220.0,0.98628144]
[1748328627663,0.00019508,109230.0,109220.0,1.24673416]
[1748328627849,0.03189508,109230.0,109220.0,1.36628144]
[1748328628054,0.03189508,109230.0,109220.0,1.38648144]
[1748328629662,0.00013751,109240.0,109230.0,0.1830452]
[1748328629854,0.03183751,109240.0,109230.0,1.54573248]
[1748328630464,0.03183751,109240.0,109230.0,1.4261852]
[1748328630762,0.03183751,109240.0,109230.0,1.54573248]
[1748328631155,0.03183751,109240.0,109230.0,1.54673248]
[1748328631859,0.03183751,109240.0,109230.0,1.59612016]
[1748328632260,0.06403751,109240.0,109230.0,1.59612016]
[1748328632459,0.06403751,109240.0,109230.0,1.59712016]
[1748328634058,0.06403751,109240.0,109230.0,1.61275733]
[1748328636963,0.24706581,109240.0,109230.0,1.12211733]
[1748328637166,0.64086581,109240.0,109230.0,0.79823005]
[1748328637371,0.64086581,109240.0,109230.0,0.79822995]
[1748328637667,0.64086581,109240.0,109230.0,0.69822995]
[1748328637869,0.95086581,109240.0,109230.0,0.55518485]
[1748328638068,0.95086581,109240.0,109230.0,0.73822995]
[1748328638270,0.95086581,109240.0,109230.0,0.72259278]
[1748328639069,0.95086581,109240.0,109230.0,0.6732051]
[1748328640471,0.95086581,109240.0,109230.0,0.6332051]
[1748328641271,0.64086581,109240.0,109230.0,0.6332051]
[1748328641463,0.64086581,109240.0,109230.0,0.6532051]
[1748328641464,0.28006581,109240.0,109230.0,0.6532051]
[1748328641665,0.64086581,109240.0,109230.0,0.6532051]
[1748328642475,0.64086581,109240.0,109230.0,0.77275238]
[1748328643569,0.64086581,109240.0,109230.0,0.77279238]
[1748328644673,0.64086581,109240.0,109230.0,0.6532451]
[1748328644874,0.64086581,109240.0,109230.0,0.77279238]
[1748328645876,0.64086581,109240.0,109230.0,0.4682]
[1748328646077,1.40278581,109240.0,109230.0,0.02]
[1748328646377,1.40278581,109240.0,109220.0,0.65316985]
[1748328646378,0.1830452,109230.0,109220.0,0.65316985]
[1748328646564,0.6044452,109230.0,109220.0,0.65316985]
[1748328646769,0.9544452,109230.0,109220.0,0.6312619]
[1748328647382,0.9544452,109230.0,109220.0,0.75080918]
[1748328647676,0.9544452,109230.0,109220.0,0.75180918]
[1748328647876,0.9544452,109230.0,109220.0,0.001]
[1748328648265,0.9544452,109230.0,109220.0,0.1840619]
[1748328648470,0.9544452,109230.0,109220.0,0.30360918]
[1748328649779,0.9544452,109230.0,109220.0,0.1840619]
[1748328649978,0.9544452,109230.0,109220.0,0.1850619]
[1748328650282,0.9544452,109230.0,109220.0,0.30360918]
[1748328650467,0.9554452,109230.0,109220.0,0.32360918]
[1748328650671,0.9564452,109230.0,109220.0,0.32260918]
[1748328651584,0.5956452,109230.0,109220.0,0.32260918]
[1748328652676,0.5956452,109230.0,109220.0,0.77084918]
[1748328652874,0.0626,109230.0,109220.0,1.57860918]
[1748328653075,0.0626,109230.0,109220.0,1.59870918]
[1748328653379,0.06272,109230.0,109220.0,1.59870918]
[1748328654095,0.06172,109230.0,109220.0,1.59870918]
[1748328654588,0.06172,109230.0,109220.0,1.60070918]
[1748328655495,0.06172,109230.0,109220.0,1.65009686]
[1748328655690,0.06172,109230.0,109220.0,2.01089686]
[1748328656297,0.06072,109230.0,109220.0,2.01289686]
[1748328657301,0.06072,109230.0,109220.0,1.48138958]
[1748328657497,0.06072,109230.0,109220.0,1.60093686]
[1748328657799,0.06072,109230.0,109220.0,1.15269686]
[1748328658001,0.06072,109230.0,109220.0,2.01289686]
[1748328658808,0.06072,109230.0,109220.0,2.03480481]
[1748328671511,0.03313751,109240.0,109230.0,0.1830451]
[1748328671714,0.00013751,109240.0,109230.0,1.06799238]
[1748328672423,0.00013751,109240.0,109230.0,1.08371292]
[1748328672604,0.00025751,109240.0,109230.0,1.08471292]
[1748328672911,0.00025751,109240.0,109230.0,0.96616564]
[1748328673413,0.00013751,109240.0,109230.0,1.08571292]
[1748328673711,0.00025751,109240.0,109230.0,1.08571292]
[1748328673906,0.00025751,109240.0,109230.0,1.08471292]
[1748328674211,0.18328591,109240.0,109230.0,1.39756564]
[1748328674408,0.18328591,109240.0,109230.0,1.91463292]
[1748328674610,0.24838591,109240.0,109230.0,1.91463292]
[1748328674909,0.24838591,109240.0,109230.0,1.94563292]
[1748328675316,0.06535751,109240.0,109230.0,1.94563292]
[1748328676008,0.24838591,109240.0,109230.0,1.94563292]
[1748328677211,0.24838591,109240.0,109230.0,1.9950206]
[1748328678421,0.06535751,109240.0,109230.0,1.9950206]
[1748328679114,0.06535751,109240.0,109230.0,1.94563292]
[1748328681521,0.24838591,109240.0,109230.0,1.91563292]
[1748328682820,0.06535751,109240.0,109230.0,1.91563292]
[1748328683026,0.24838591,109240.0,109230.0,1.91559292]
[1748328683414,0.24838591,109240.0,109230.0,1.05311292]
[1748328683611,0.24838591,109240.0,109230.0,0.93356564]
[1748328683811,0.24838591,109240.0,109230.0,1.50367292]
[1748328684011,0.24838591,109240.0,109230.0,1.5530606]
[1748328684416,0.24838591,109240.0,109230.0,1.43351332]
[1748328684610,0.60918591,109240.0,109230.0,0.64966822]
[1748328684807,0.84918591,109240.0,109230.0,0.06910822]
[1748328685222,0.84918591,109240.0,109230.0,0.05338768]
[1748328685414,1.26106591,109240.0,109230.0,0.05338768]
[1748328686026,1.26106591,109240.0,109230.0,0.002]
[1748328686212,0.1830452,109230.0,109220.0,1.28888967]
[1748328686406,0.2775452,109230.0,109220.0,1.29888967]
[1748328686612,0.6383452,109230.0,109220.0,0.93808967]
[1748328687121,0.2775452,109230.0,109220.0,1.09808967]
[1748328687512,0.2776652,109230.0,109220.0,1.09808967]
[1748328687711,0.2776652,109230.0,109220.0,1.09908967]
[1748328687921,0.2776652,109230.0,109220.0,1.10008967]
[1748328689421,0.2776652,109230.0,109220.0,1.31168967]
[1748328689722,0.2775452,109230.0,109220.0,1.31168967]
[1748328690021,0.2776652,109230.0,109220.0,1.31168967]
[1748328690319,0.2775452,109230.0,109220.0,1.31168967]
[1748328690520,0.2776652,109230.0,109220.0,1.31168967]
[1748328690721,0.2776652,109230.0,109220.0,1.28008967]
[1748328690924,0.2776652,109230.0,109220.0,0.50917577]
[1748328691123,0.6384652,109230.0,109220.0,0.46223767]
[1748328691310,0.6384652,109230.0,109220.0,0.79329039]
[1748328691716,0.6384652,109230.0,109220.0,0.77756985]
[1748328692731,0.6384652,109230.0,109220.0,0.89711713]
[1748328693027,0.6384652,109230.0,109220.0,0.87520918]
[1748328693927,0.6384652,109230.0,109220.0,0.92459686]
[1748328697129,0.9484652,109230.0,109220.0,0.92459686]
[1748328698627,0.9484652,109230.0,109220.0,0.47399686]
[1748328698833,0.6384652,109230.0,109220.0,0.91503686]
[1748328699128,0.6384652,109230.0,109220.0,0.79548958]
[1748328699430,0.9284652,109230.0,109220.0,0.35444958]
[1748328699828,0.9284652,109230.0,109220.0,0.23444958]
[1748328700030,0.9284652,109230.0,109220.0,0.25444958]
[1748328700230,1.3414252,109230.0,109220.0,0.25344958]
[1748328700420,1.3414252,109230.0,109220.0,0.07038768]
[1748328700624,1.3714252,109230.0,109220.0,0.23344958]
[1748328701027,1.3714252,109230.0,109220.0,0.05038768]
[1748328701230,0.1830619,109220.0,109210.0,0.02921675]
[1748328701533,0.7963619,109220.0,109210.0,0.01572054]
[1748328701837,0.8879259,109220.0,109210.0,0.01572054]
[1748328702645,0.1830787,109210.0,109200.0,0.19655127]
[1748328702849,0.9776787,109210.0,109200.0,0.28655127]
[1748328704035,0.9786787,109210.0,109200.0,0.28655127]
[1748328704545,0.9786787,109210.0,109200.0,0.10345777]
[1748328705044,1.3906787,109210.0,109200.0,0.10345777]
[1748328705240,1.51022598,109210.0,109200.0,0.09]
[1748328705539,0.1831122,109190.0,109180.0,0.49700054]
[1748328705739,0.8739122,109190.0,109180.0,0.49700054]
[1748328705944,0.9672122,109190.0,109180.0,0.48128]
[1748328706734,0.9672122,109190.0,109180.0,0.48328]
[1748328707232,1.3792122,109190.0,109180.0,0.002]
[1748328707636,1.3792122,109190.0,109180.0,0.004]
[1748328708339,1.85955948,109190.0,109180.0,0.004]
[1748328708737,1.7400122,109190.0,109180.0,0.004]
[1748328714746,1.3280122,109190.0,109180.0,0.004]
[1748328714951,1.3280122,109190.0,109180.0,0.12354728]
[1748328715153,1.7401322,109190.0,109180.0,0.15414728]
[1748328715351,1.7402522,109190.0,109180.0,0.18704728]
[1748328715743,1.7402522,109190.0,109180.0,0.25704728]
[1748328715948,1.7402522,109190.0,109180.0,0.21984728]
[1748328716149,1.7402522,109190.0,109180.0,0.1703]
[1748328718146,1.7402522,109190.0,109180.0,0.1683]
[1748328718354,1.7402522,109190.0,109180.0,0.1693]
[1748328718559,1.7402522,109190.0,109180.0,0.1673]
[1748328718859,1.7402522,109190.0,109180.0,0.1683]
[1748328720158,1.3281322,109190.0,109180.0,0.47097608]
[1748328720345,1.2961322,109190.0,109180.0,0.70097608]
[1748328720549,0.2140322,109190.0,109180.0,0.70097608]
[1748328720745,0.2139122,109190.0,109180.0,0.70097608]
[1748328720961,0.2140322,109190.0,109180.0,0.5814288]
[1748328721156,0.2140322,109190.0,109180.0,0.70097608]
[1748328722260,0.2140322,109190.0,109180.0,1.11313608]
[1748328723860,0.2452322,109190.0,109180.0,1.41140728]
[1748328724047,0.2452322,109190.0,109180.0,0.302]
[1748328724252,0.2452322,109190.0,109180.0,0.78344]
[1748328724253,0.9160322,109190.0,109180.0,0.78344]
[1748328724452,0.9360322,109190.0,109180.0,0.78344]
[1748328724657,0.6060322,109190.0,109180.0,0.55444]
[1748328724863,0.6060322,109190.0,109180.0,0.67398728]
[1748328725054,0.6060322,109190.0,109180.0,1.07961608]
[1748328725262,0.2451122,109190.0,109180.0,1.07961608]
[1748328725556,0.2452322,109190.0,109180.0,1.07961608]
[1748328726364,0.2451122,109190.0,109180.0,1.07961608]
[1748328726556,0.2452322,109190.0,109180.0,1.07961608]
[1748328726755,0.6059122,109190.0,109180.0,0.9600688]
[1748328726955,0.6060322,109190.0,109180.0,1.07961608]
[1748328727761,0.6060322,109190.0,109180.0,0.89648728]
[1748328727965,0.6060322,109190.0,109180.0,0.9600688]
[1748328732167,0.6060322,109190.0,109180.0,1.07961608]
[1748328733268,0.6060322,109190.0,109180.0,0.9600688]
[1748328733568,0.1831623,109160.0,109150.0,5e-08]
[1748328733763,1.6368823,109160.0,109150.0,2e-08]
[1748328733960,0.1831959,109140.0,109130.0,0.13750398]
[1748328734165,1.3269159,109140.0,109130.0,0.07210398]
[1748328734372,1.7712159,109140.0,109130.0,0.03133243]
[1748328734575,0.1832127,109130.0,109120.0,0.7611295]
[1748328734869,0.6079127,109130.0,109120.0,0.7611295]
[1748328735261,0.6079127,109130.0,109120.0,0.60634427]
[1748328735461,0.6079127,109130.0,109120.0,0.65573195]
[1748328736062,0.60797769,109130.0,109120.0,0.11073195]
[1748328736263,0.60797769,109130.0,109120.0,0.56687195]
[1748328736660,0.6079127,109130.0,109120.0,0.56699195]
[1748328736862,0.6079127,109130.0,109120.0,0.57087195]
[1748328737062,0.9879127,109130.0,109120.0,0.38945488]
[1748328737262,0.9879127,109130.0,109120.0,0.40348051]
[1748328737263,0.6079127,109130.0,109120.0,0.40348051]
[1748328737563,0.6089127,109130.0,109120.0,0.02314563]
[1748328738068,0.6089127,109130.0,109120.0,0.00912]
[1748328738472,0.9389127,109130.0,109120.0,0.00912]
[1748328738661,0.6089127,109130.0,109120.0,0.00912]
[1748328738858,0.6789127,109130.0,109120.0,0.00912]
[1748328740175,0.6789127,109130.0,109120.0,0.00512]
[1748328740176,0.6799127,109130.0,109120.0,0.00512]
[1748328741071,0.6799127,109130.0,109120.0,0.00012]
[1748328741072,1.0211927,109130.0,109120.0,0.00012]
[1748328741256,1.0221927,109130.0,109120.0,0.00012]
[1748328741673,1.3321927,109130.0,109120.0,0.00012]
[1748328742065,1.0221927,109130.0,109120.0,0.00012]
[1748328742369,1.0221927,109130.0,109120.0,0.01401822]
[1748328742561,1.3321927,109130.0,109120.0,0.00012]
[1748328743365,1.0221927,109130.0,109120.0,0.00012]
[1748328743767,1.34228899,109130.0,109120.0,0.00012]
[1748328743971,1.3421927,109130.0,109120.0,0.00012]
[1748328744163,1.0221927,109130.0,109120.0,0.00012]
[1748328744365,1.14173998,109130.0,109120.0,1e-07]
[1748328744569,1.48173998,109130.0,109120.0,1e-07]
[1748328744772,0.1832459,109110.0,109100.0,0.1311]
[1748328744959,0.54412554,109110.0,109100.0,0.1311]
[1748328745161,0.24643385,109110.0,109100.0,0.8563227]
[1748328745472,0.24655385,109110.0,109100.0,0.87001965]
[1748328745864,0.24655385,109110.0,109100.0,0.96036693]
[1748328746071,0.24655385,109110.0,109100.0,0.98840024]
[1748328746268,0.24655385,109110.0,109100.0,1.02160024]
[1748328746879,0.24643385,109110.0,109100.0,1.08260024]
[1748328747063,0.24655385,109110.0,109100.0,1.08260024]
[1748328747676,0.24655385,109110.0,109100.0,1.08264024]
[1748328748775,0.24655385,109110.0,109100.0,0.17573026]
[1748328748973,0.60735385,109110.0,109100.0,0.65653026]
[1748328749274,0.60735385,109110.0,109100.0,0.65665026]
[1748328749473,0.60735385,109110.0,109100.0,0.68665026]
[1748328749864,1.01971385,109110.0,109100.0,0.68665026]
[1748328750570,1.0296259,109110.0,109100.0,0.60186655]
[1748328750775,1.0296259,109110.0,109100.0,0.60174655]
[1748328751074,1.3795059,109110.0,109100.0,0.09106655]
[1748328751268,1.49905318,109110.0,109100.0,0.04012485]
[1748328751467,1.49917318,109110.0,109100.0,0.004]
[1748328751669,0.1832616,109100.0,109090.0,0.00137498]
[1748328751963,0.84143223,109100.0,109090.0,0.00137498]
[1748328752167,0.8413616,109100.0,109090.0,0.00137498]
[1748328752872,0.8413616,109100.0,109090.0,0.00437498]
[1748328753172,0.8413616,109100.0,109090.0,0.0087668]
[1748328753766,0.8423616,109100.0,109090.0,0.0117668]
[1748328754069,0.96190888,109100.0,109090.0,0.01039182]
[1748328754374,0.96190888,109100.0,109090.0,0.00612]
[1748328755168,0.8423616,109100.0,109090.0,0.00612]
[1748328755779,0.8424816,109100.0,109090.0,0.00612]
[1748328756071,0.84742608,109100.0,109090.0,0.003]
[1748328756277,0.84745789,109100.0,109090.0,0.003]
[1748328756473,0.8478415,109100.0,109090.0,0.003]
[1748328756779,0.8478415,109100.0,109090.0,0.00636]
[1748328757278,0.8508415,109100.0,109090.0,0.00436]
[1748328761075,0.1833624,109040.0,109030.0,0.01581289]
[1748328761280,0.69425869,109040.0,109030.0,0.27217999]
[1748328761483,0.69425869,109040.0,109030.0,0.09217999]
[1748328761683,0.72535869,109040.0,109030.0,0.12032392]
[1748328761885,0.72535869,109040.0,109030.0,0.12044392]
[1748328762191,1.13783869,109040.0,109030.0,0.12444392]
[1748328762389,1.13783869,109040.0,109030.0,0.10863103]
[1748328762890,1.13783869,109040.0,109030.0,0.10851103]
[1748328763086,1.13783869,109040.0,109030.0,0.10863103]
[1748328763283,1.13783869,109040.0,109030.0,0.04483103]
[1748328763284,1.1377424,109040.0,109030.0,0.04483103]
[1748328763486,1.1377424,109040.0,109030.0,0.10813103]
[1748328763688,1.1377424,109040.0,109030.0,0.10801103]
[1748328763891,1.1387424,109040.0,109030.0,0.11213103]
[1748328764091,1.1387424,109040.0,109030.0,0.11201103]
[1748328764387,1.17003869,109040.0,109030.0,0.11213103]
[1748328764783,1.1699424,109040.0,109030.0,0.11113103]
[1748328766088,1.1699424,109040.0,109030.0,0.04783103]
[1748328766298,0.0458457,109030.0,109000.0,0.1]
[1748328766507,0.5442129,109010.0,109000.0,0.1]
[1748328766693,0.56430919,109010.0,109000.0,0.11304313]
[1748328766896,0.6250129,109010.0,109000.0,0.11304313]
[1748328767104,0.6250129,109010.0,109000.0,0.12706435]
[1748328767406,0.6250129,109010.0,109000.0,0.12694435]
[1748328767705,0.6260129,109010.0,109000.0,0.19246435]
[1748328767901,0.6260129,109010.0,109000.0,0.20446435]
[1748328768100,0.65794919,109010.0,109000.0,0.38789405]
[1748328768406,0.66094919,109010.0,109000.0,0.7641389]
[1748328768703,0.66094919,109010.0,109000.0,0.11402122]
[1748328769005,1.02174919,109010.0,109000.0,0.11402122]
[1748328769211,1.02174919,109010.0,109000.0,0.11390122]
[1748328769408,1.01874919,109010.0,109000.0,0.11390122]
[1748328769706,1.01874919,109010.0,109000.0,0.17565582]
[1748328769909,1.01874919,109010.0,109000.0,0.14772122]
[1748328771098,1.02074919,109010.0,109000.0,0.17942122]
[1748328773702,0.60810919,109010.0,109000.0,0.17942122]
[1748328774099,0.60810919,109010.0,109000.0,0.39069325]
[1748328774297,0.24730919,109010.0,109000.0,0.21912366]
[1748328774501,0.24730919,109010.0,109000.0,0.24912366]
[1748328774906,0.24730919,109010.0,109000.0,0.05784233]
[1748328775400,0.24730919,109010.0,109000.0,0.24127203]
[1748328776207,0.24730919,109010.0,109000.0,0.60207203]
[1748328776208,0.24730909,109010.0,109000.0,0.60207203]
[1748328776903,0.24730909,109010.0,109000.0,0.24127193]
[1748328777204,0.24730909,109010.0,109000.0,0.05796233]
[1748328777400,0.60810909,109010.0,109000.0,0.24139193]
[1748328777600,0.60810909,109010.0,109000.0,0.25359193]
[1748328777804,0.60810909,109010.0,109000.0,0.11382789]
[1748328778002,0.60810909,109010.0,109000.0,0.07204789]
[1748328778207,0.60810909,109010.0,109000.0,0.07192789]
[1748328778505,0.60810909,109010.0,109000.0,0.07204789]
[1748328778801,0.60810909,109010.0,109000.0,0.25547749]
[1748328779211,0.24730909,109010.0,109000.0,0.29737749]
[1748328779802,0.60810909,109010.0,109000.0,0.58672789]
[1748328780203,0.57810909,109010.0,109000.0,0.77015749]
[1748328780405,0.57810909,109010.0,109000.0,0.81205749]
[1748328780610,0.60960909,109010.0,109000.0,0.81205749]
[1748328781408,0.60960909,109010.0,109000.0,0.62862789]
[1748328781611,0.60960909,109010.0,109000.0,0.59892789]
[1748328781810,0.60960909,109010.0,109000.0,0.55876556]
[1748328782110,0.60960909,109010.0,109000.0,0.55888556]
[1748328784013,0.60960909,109010.0,109000.0,0.52888556]
[1748328784711,0.60960909,109010.0,109000.0,0.52876556]
[1748328784910,0.60960909,109010.0,109000.0,0.52888556]
[1748328785418,0.60960909,109010.0,109000.0,0.71231516]
[1748328785719,0.24880909,109010.0,109000.0,0.75421516]
[1748328785916,0.24880909,109010.0,109000.0,0.76421516]
[1748328786916,0.24880909,109010.0,109000.0,0.76860698]
[1748328787111,0.60960909,109010.0,109000.0,0.76860698]
[1748328787314,0.24880909,109010.0,109000.0,0.76860698]
[1748328789515,0.24880909,109010.0,109000.0,0.58517738]
[1748328789815,0.60960909,109010.0,109000.0,0.54327738]
[1748328790510,0.65114637,109010.0,109000.0,0.54327738]
[1748328790907,0.29034637,109010.0,109000.0,0.72674698]
[1748328791306,0.29034637,109010.0,109000.0,0.73894698]
[1748328792411,0.29034637,109010.0,109000.0,0.55551738]
[1748328792615,0.29034637,109010.0,109000.0,0.54331738]
[1748328792805,0.65114637,109010.0,109000.0,0.54331738]
[1748328793114,0.65114637,109010.0,109000.0,0.53331738]
[1748328793311,0.65114637,109010.0,109000.0,0.53319738]
[1748328793817,0.65114637,109010.0,109000.0,0.52880556]
[1748328794014,0.65114637,109010.0,109000.0,0.52892556]
[1748328796928,0.65114637,109010.0,109000.0,0.53331738]
[1748328797708,0.65114637,109010.0,109000.0,0.70331738]
[1748328797909,0.65114637,109010.0,109000.0,0.53331738]
[1748328798519,0.65114637,109010.0,109000.0,0.57331738]
[1748328799412,0.65114637,109010.0,109000.0,0.05859738]
[1748328799614,0.65105008,109010.0,109000.0,0.01859738]
[1748328799818,0.1834296,109000.0,108990.0,0.40396653]
[1748328800118,0.1834465,108990.0,108980.0,0.20429256]
[1748328800311,0.21963454,108990.0,108980.0,0.38189854]
[1748328800511,0.21963454,108990.0,108980.0,0.3684833]
[1748328801117,0.21963454,108990.0,108980.0,0.4288833]
[1748328801521,0.21963454,108990.0,108980.0,0.24542]
[1748328802223,0.21963454,108990.0,108980.0,0.24642]
[1748328802625,0.22063454,108990.0,108980.0,0.24642]
[1748328803127,0.25333454,108990.0,108980.0,0.24642]
[1748328803324,0.25333454,108990.0,108980.0,0.28940142]
[1748328804024,0.25333454,108990.0,108980.0,0.30303457]
[1748328804225,0.25333454,108990.0,108980.0,0.24263457]
[1748328804914,0.25333454,108990.0,108980.0,0.27333457]
[1748328805122,0.61413454,108990.0,108980.0,0.27333457]
[1748328805417,0.61421138,108990.0,108980.0,0.27333457]
[1748328805826,0.61421138,108990.0,108980.0,0.27321457]
[1748328806329,0.61421138,108990.0,108980.0,0.27333457]
[1748328807819,0.25341138,108990.0,108980.0,0.27333457]
[1748328808732,0.25341138,108990.0,108980.0,0.45679787]
[1748328809224,0.25341138,108990.0,108980.0,0.48649787]
[1748328809425,0.61421138,108990.0,108980.0,0.30303457]
[1748328811429,0.61421138,108990.0,108980.0,0.48649787]
[1748328815225,0.61421138,108990.0,108980.0,0.49088969]
[1748328816032,0.03856488,108990.0,108980.0,0.49088969]
[1748328816331,0.03856488,108990.0,108980.0,0.70587926]
[1748328816527,0.22201138,108990.0,108980.0,0.70587926]
[1748328817730,0.25361138,108990.0,108980.0,0.70587926]
[1748328818127,0.00586488,108990.0,108980.0,0.79763526]
[1748328818432,0.18931138,108990.0,108980.0,0.79763526]
[1748328818723,0.22231138,108990.0,108980.0,0.79763526]
[1748328818934,0.03886488,108990.0,108980.0,0.84594772]
[1748328820537,0.00586488,108990.0,108980.0,0.84594772]
[1748328820922,0.00586488,108990.0,108980.0,1.23388894]
[1748328821126,0.6686885,109030.0,109020.0,0.183396]
[1748328821330,0.66629448,109030.0,109020.0,0.74767361]
[1748328821834,0.66629448,109030.0,109020.0,0.25907361]
[1748328822042,0.67636108,109030.0,109020.0,0.00478804]
[1748328822335,0.78129448,109030.0,109020.0,0.01863736]
[1748328822631,0.89219448,109030.0,109020.0,0.01875736]
[1748328822831,1.0351357,109030.0,109020.0,0.01863736]
[1748328823137,0.183396,109020.0,109010.0,0.0162166]
[1748328823432,0.1834297,109000.0,108990.0,0.38435104]
[1748328823627,0.5442297,109000.0,108990.0,0.05355104]
[1748328823829,0.54430278,109000.0,108990.0,0.05355104]
[1748328824028,0.54430278,109000.0,108990.0,0.05367104]
[1748328824229,0.57560278,109000.0,108990.0,0.05367104]
[1748328824530,0.57560278,109000.0,108990.0,0.05229474]
[1748328824836,0.57660278,109000.0,108990.0,0.05229474]
[1748328825337,0.57660278,109000.0,108990.0,0.02229474]
[1748328825540,0.57760278,109000.0,108990.0,0.02329474]
[1748328826033,0.57760278,109000.0,108990.0,0.00112]
[1748328826229,0.57760278,109000.0,108990.0,0.05204247]
[1748328826539,0.6085297,109000.0,108990.0,0.05204247]
[1748328826838,0.6396297,109000.0,108990.0,0.05192247]
[1748328827039,0.6396297,109000.0,108990.0,0.05204247]
[1748328828339,0.6396297,109000.0,108990.0,0.00112]
[1748328828644,0.6496297,109000.0,108990.0,0.00112]
[1748328828835,0.76973678,109000.0,108990.0,0.00112]
[1748328829030,1.01973678,109000.0,108990.0,1e-07]
[1748328829235,0.1834465,108990.0,108980.0,2e-08]
[1748328829428,0.1834633,108980.0,108970.0,0.01978074]
[1748328829627,0.75082403,108980.0,108970.0,0.03274645]
[1748328829836,0.75107478,108980.0,108970.0,0.03274645]
[1748328830035,0.75321805,108980.0,108970.0,0.03286645]
[1748328830540,0.63311097,108980.0,108970.0,0.03286645]
[1748328831232,0.1835139,108950.0,108940.0,0.04077155]
[1748328831443,0.1835476,108930.0,108920.0,0.03220931]
[1748328831648,0.54441426,108930.0,108920.0,0.0761193]
[1748328831849,0.66452134,108930.0,108920.0,0.03144791]
[1748328832051,0.66691536,108930.0,108920.0,0.03156791]
[1748328832235,0.54680828,108930.0,108920.0,0.03144791]
[1748328832547,0.54674162,108930.0,108920.0,0.03144791]
[1748328832740,0.6668487,108930.0,108920.0,0.03144791]
[1748328833049,0.7468487,108930.0,108920.0,0.00023548]
[1748328833348,1.0886567,108930.0,108920.0,0.00011548]
[1748328833530,0.1835813,108910.0,108900.0,0.69124]
[1748328833843,0.1835813,108910.0,108900.0,0.1609]
[1748328834039,0.18597532,108910.0,108900.0,0.75238]
[1748328834542,0.2175858,108910.0,108900.0,0.78428]
[1748328834735,0.2195858,108910.0,108900.0,0.78528]
[1748328835044,0.2205858,108910.0,108900.0,0.80277861]
[1748328835832,0.2205858,108910.0,108900.0,0.21141861]
[1748328836044,0.2205858,108910.0,108900.0,0.80277861]
[1748328836842,0.6120858,108910.0,108900.0,0.80277861]
[1748328837143,0.6100858,108910.0,108900.0,0.80177861]
[1748328837345,0.6110858,108910.0,108900.0,0.75838]
[1748328837849,0.6110858,108910.0,108900.0,0.72826]
[1748328837850,0.61097532,108910.0,108900.0,0.72826]
[1748328838146,0.74914924,108910.0,108900.0,0.10612]
[1748328838329,0.61097532,108910.0,108900.0,0.106]
[1748328838528,0.61097532,108910.0,108900.0,0.10612]
[1748328838932,0.74914924,108910.0,108900.0,0.10612]
[1748328839344,0.75914924,108910.0,108900.0,0.106]
[1748328839545,0.75914924,108910.0,108900.0,0.10612]
[1748328839842,1.03397532,108910.0,108900.0,0.10612]
[1748328840449,1.03297532,108910.0,108900.0,0.10212]
[1748328840836,1.03297532,108910.0,108900.0,0.10112]
[1748328841439,1.03305532,108910.0,108900.0,0.10112]
[1748328841743,1.03305532,108910.0,108900.0,0.3464184]
[1748328841943,1.03305532,108910.0,108900.0,0.19402]
[1748328842241,1.03316526,108910.0,108900.0,0.19402]
[1748328842546,1.03305532,108910.0,108900.0,0.3776184]
[1748328842737,1.02317341,108910.0,108900.0,0.3776184]
[1748328842938,0.24929341,108910.0,108900.0,0.3776184]
[1748328843337,0.24929341,108910.0,108900.0,0.39102665]
[1748328843638,0.61009341,108910.0,108900.0,0.39102665]
[1748328843845,0.61009341,108910.0,108900.0,0.98262665]
[1748328844740,0.61009341,108910.0,108900.0,0.98701847]
[1748328845640,0.61009341,108910.0,108900.0,0.39541847]
[1748328845837,0.61009341,108910.0,108900.0,0.98705847]
[1748328846038,0.24929341,108910.0,108900.0,0.98705847]
[1748328848036,0.18709341,108910.0,108900.0,0.98705847]
[1748328848845,0.00351211,108910.0,108900.0,1.48603239]
[1748328849147,0.00351211,108910.0,108900.0,1.57785638]
[1748328849538,0.00351211,108910.0,108900.0,1.82785638]
[1748328849733,0.183543,108940.0,108930.0,0.1835478]
[1748328849933,0.183543,108940.0,108930.0,0.5743478]
[1748328850138,0.7468731,108950.0,108940.0,0.183531]
[1748328850339,0.7468731,108950.0,108940.0,0.88447925]
[1748328850742,0.5903239,108950.0,108940.0,0.88447925]
[1748328851142,0.6204239,108950.0,108940.0,0.88447925]
[1748328851846,0.6254239,108950.0,108940.0,0.88447925]
[1748328852552,0.5953239,108950.0,108940.0,1.29759925]
[1748328852942,0.5953239,108950.0,108940.0,1.32839925]
[1748328853143,0.5953239,108950.0,108940.0,1.314991]
[1748328853349,0.5953239,108950.0,108940.0,1.315991]
[1748328853544,0.5913239,108950.0,108940.0,1.317991]
[1748328854140,0.5913239,108950.0,108940.0,0.033]
[1748328854353,1.0535081,108950.0,108940.0,0.6246]
[1748328854545,1.0849081,108950.0,108940.0,0.60749431]
[1748328854946,1.0849081,108950.0,108940.0,0.64059431]
[1748328856349,1.0849081,108950.0,108940.0,0.67069431]
[1748328857050,1.0849081,108950.0,108940.0,0.70069431]
[1748328857247,1.0849081,108950.0,108940.0,0.67069431]
[1748328860849,1.0849081,108950.0,108940.0,0.67508613]
[1748328861051,1.08501405,108950.0,108940.0,0.67508613]
[1748328861255,1.0849081,108950.0,108940.0,0.67508613]
[1748328861653,1.0849081,108950.0,108940.0,0.68508613]
[1748328862455,1.08730212,108950.0,108940.0,0.70508613]
[1748328863264,0.68660952,108950.0,108940.0,0.70508613]
[1748328863465,0.65520952,108950.0,108940.0,0.88861693]
[1748328865458,0.65520952,108950.0,108940.0,1.30169693]
[1748328865663,0.65520952,108950.0,108940.0,1.28880262]
[1748328866466,0.18702752,108950.0,108940.0,1.28880262]
[1748328866662,0.00350142,108950.0,108940.0,1.74139062]
[1748328866871,0.18701532,108950.0,108940.0,1.74139062]
[1748328867167,0.18701532,108950.0,108940.0,1.65489986]
[1748328868563,0.18701532,108950.0,108940.0,1.6688321]
[1748328869463,0.00350142,108950.0,108940.0,1.7606201]
[1748328870563,0.18701532,108950.0,108940.0,1.7606201]
[1748328870868,0.00350142,108950.0,108940.0,1.7606201]
[1748328871369,0.18701532,108950.0,108940.0,1.7606201]
[1748328871569,0.00350142,108950.0,108940.0,1.50940936]
[1748328871862,0.00350142,108950.0,108940.0,1.62958135]
[1748328872061,0.00350142,108950.0,108940.0,1.63397317]
[1748328873669,0.00350142,108950.0,108940.0,0.63677317]
[1748328873867,0.00350142,108950.0,108940.0,1.63381317]
[1748328874575,0.18701532,108950.0,108940.0,0.51660118]
[1748328874871,0.24951532,108950.0,108940.0,1.69561317]
[1748328876368,0.24951532,108950.0,108940.0,1.57544118]
[1748328876560,0.24951532,108950.0,108940.0,1.69561317]
[1748328877372,0.24951532,108950.0,108940.0,1.28261317]